bitfinex-derivatives/quotes_SOLF0:USTF0_20250606
["timestamp","ask_amount","ask_price","bid_price","bid_amount"]
[1749234404876,7.27941859,149.34,149.32,10.04943336]
[1749234405078,6.6916,149.33,149.32,10.04943336]
[1749234405577,7.27941859,149.34,149.3,78.46304381]
[1749234405787,13.92502159,149.31,149.3,78.46304381]
[1749234405986,13.92502159,149.31,149.3,72.16031633]
[1749234406188,7.23252159,149.31,149.3,72.16031633]
[1749234406873,13.92502159,149.31,149.3,60.61941633]
[1749234407071,21.16504318,149.31,149.24,2.74723823]
[1749234407279,7.23252159,149.3,149.24,2.74723823]
[1749234407483,33.58,149.29,149.24,12.74723823]
[1749234407677,33.58,149.28,149.24,12.74723823]
[1749234408084,33.58,149.28,149.27,6.6943]
[1749234410997,0.05068931,149.29,149.28,6.6939]
[1749234417892,0.05068931,149.29,149.27,6.6941]
[1749234418091,0.05068931,149.29,149.26,2.33]
[1749234418591,0.05068931,149.29,149.28,6.6939]
[1749234422098,0.05068931,149.29,149.28,16.6939]
[1749234422784,6.74408931,149.29,149.28,10.0]
[1749234423185,0.05068931,149.29,149.28,10.0]
[1749234423498,12.56476861,149.29,149.28,10.0]
[1749234427398,12.56476861,149.29,149.28,16.6939]
[1749234427900,19.25816861,149.29,149.28,10.0]
[1749234428398,12.56476861,149.29,149.28,10.0]
[1749234428994,19.25816861,149.29,149.28,10.0]
[1749234429189,14.04534022,149.29,149.28,10.0]
[1749234430197,7.35194022,149.29,149.28,10.0]
[1749234431496,0.05068931,149.29,149.28,16.6939]
[1749234444207,0.05068931,149.29,149.28,10.0]
[1749234444408,7.35194022,149.29,149.28,10.0]
[1749234444609,14.04534022,149.29,149.28,10.0]
[1749234450910,6.6947,149.26,149.25,0.04351712]
[1749234451216,47.59595091,149.26,149.25,0.04351712]
[1749234453014,47.59595091,149.26,149.25,10.04351712]
[1749234457022,33.6,149.26,149.25,10.04351712]
[1749234457819,40.2947,149.26,149.25,10.04351712]
[1749234458024,33.6,149.26,149.25,10.04351712]
[1749234459023,33.62,149.26,149.25,10.04351712]
[1749234459223,40.3147,149.26,149.25,1.712e-05]
[1749234459422,53.80005519,149.26,149.15,2.2945]
[1749234459625,7.30125091,149.19,149.15,2.2945]
[1749234459822,33.62,149.18,149.15,2.2945]
[1749234460217,6.6992,149.17,149.15,2.33866035]
[1749234460422,33.6649018,149.18,149.15,2.33866035]
[1749234461028,6.6992,149.16,149.15,2.33866035]
[1749234461423,6.6992,149.16,149.15,12.33866035]
[1749234470027,14.00045091,149.16,149.15,6.035e-05]
[1749234470223,14.00045091,149.16,149.02,4.3297]
[1749234470224,98.0,149.15,149.02,4.3297]
[1749234470426,385.92,149.14,149.07,7.32020044]
[1749234470630,6.7015,149.11,149.08,6.6605]
[1749234470830,419.68,149.14,149.08,6.6605]
[1749234471039,0.04431688,149.12,149.1,0.04507538]
[1749234472335,0.04431688,149.12,149.1,10.04507538]
[1749234472736,6.74541688,149.12,149.1,10.04507538]
[1749234473728,0.04431688,149.12,149.1,10.04507538]
[1749234475236,0.04431688,149.12,149.11,6.7014]
[1749234475433,0.04431688,149.12,149.1,10.04507538]
[1749234477039,0.04431688,149.12,149.1,16.74667538]
[1749234477438,0.04431688,149.12,149.1,10.04507538]
[1749234478139,7.36451732,149.12,149.1,10.04507538]
[1749234478947,6.74551688,149.12,149.1,10.04507538]
[1749234479241,0.04431688,149.12,149.1,10.04507538]
[1749234479439,0.04431688,149.12,149.1,16.74687538]
[1749234479942,0.04431688,149.12,149.1,10.04507538]
[1749234480133,0.04431688,149.12,149.11,6.7014]
[1749234481038,33.76,149.14,149.13,6.7005]
[1749234481238,26.757,149.14,149.13,6.7005]
[1749234481648,123.34242916,149.16,149.14,6.7]
[1749234481942,116.69405549,149.16,149.14,6.74385618]
[1749234482141,116.69405549,149.16,149.14,0.04385618]
[1749234482346,116.69405549,149.16,149.15,6.6996]
[1749234482742,0.05102633,149.16,149.15,6.6996]
[1749234482942,0.05102633,149.16,149.14,0.04385618]
[1749234483341,0.05102633,149.16,149.15,6.6996]
[1749234483742,0.05102633,149.16,149.14,0.04385618]
[1749234484547,6.6996,149.15,149.14,0.04385618]
[1749234484853,6.6996,149.15,149.14,10.04385618]
[1749234487056,6.75042633,149.16,149.14,10.04385618]
[1749234487651,6.6996,149.15,149.14,10.04385618]
[1749234487854,0.05102633,149.16,149.14,16.74395618]
[1749234488655,0.05102633,149.16,149.14,10.04385618]
[1749234488859,6.75032633,149.16,149.14,10.04385618]
[1749234489958,0.05102633,149.16,149.14,10.04385618]
[1749234490959,6.75022633,149.16,149.14,16.74375618]
[1749234491660,0.05102633,149.16,149.14,10.04385618]
[1749234492564,6.75022633,149.16,149.14,10.04385618]
[1749234492766,0.05102633,149.16,149.14,10.04385618]
[1749234493058,0.05102633,149.16,149.14,16.74395618]
[1749234493359,0.05102633,149.16,149.14,10.04385618]
[1749234493860,6.75022633,149.16,149.14,10.04385618]
[1749234494958,0.05102633,149.16,149.15,6.6996]
[1749234495661,0.05102633,149.16,149.14,16.74375618]
[1749234495963,0.05102633,149.16,149.14,10.04385618]
[1749234496765,0.05102633,149.16,149.14,16.74375618]
[1749234497265,6.75032633,149.16,149.14,10.04385618]
[1749234497966,0.05102633,149.16,149.14,16.74385618]
[1749234498668,6.75022633,149.16,149.14,10.04385618]
[1749234499259,0.05102633,149.16,149.14,16.74395618]
[1749234499665,0.05102633,149.16,149.14,10.04385618]
[1749234499862,6.75032633,149.16,149.14,10.04385618]
[1749234501370,0.05102633,149.16,149.14,16.74375618]
[1749234501968,0.05102633,149.16,149.15,6.6996]
[1749234502166,0.05102633,149.16,149.14,10.04385618]
[1749234502461,7.32020044,149.15,149.14,10.04385618]
[1749234502666,14.01980044,149.15,149.14,10.04385618]
[1749234503467,7.37122677,149.16,149.14,10.04385618]
[1749234503864,7.37122677,149.16,149.08,12.85365525]
[1749234504064,7.32020044,149.12,149.08,6.6605]
[1749234504568,7.32020044,149.12,149.1,6.7016]
[1749234504768,7.36555849,149.12,149.1,6.75287029]
[1749234505667,14.06665849,149.12,149.1,0.05127029]
[1749234505867,7.36555849,149.12,149.1,10.05127029]
[1749234506266,6.7014,149.11,149.1,10.05127029]
[1749234508464,14.06675849,149.12,149.1,10.05127029]
[1749234508668,0.04535805,149.12,149.1,10.05127029]
[1749234509471,0.04535805,149.12,149.11,6.7014]
[1749234512366,0.04535805,149.12,149.1,16.75297029]
[1749234512672,0.04535805,149.12,149.1,10.05127029]
[1749234513374,0.04535805,149.12,149.11,6.7014]
[1749234515077,0.04535805,149.12,149.1,16.75297029]
[1749234515870,7.36555849,149.12,149.1,10.05127029]
[1749234516272,6.7014,149.11,149.1,10.05127029]
[1749234517677,14.06665849,149.12,149.1,10.05127029]
[1749234518579,6.7014,149.11,149.1,10.05127029]
[1749234520278,6.7014,149.11,149.0,6.19315525]
[1749234520279,14.02020044,149.11,149.0,6.19315525]
[1749234520482,7.32020044,149.05,148.99,6.19315525]
[1749234520678,47.82460044,149.05,149.01,6.7057]
[1749234520877,33.8,149.05,149.0,7.32020044]
[1749234521071,33.8,149.05,149.0,13.51335569]
[1749234521275,0.04216102,149.04,149.02,6.7052]
[1749234521478,0.04216102,149.04,149.01,0.04322959]
[1749234522073,0.04216102,149.04,149.01,10.04322959]
[1749234522475,0.04216102,149.04,149.02,6.7052]
[1749234523276,0.04216102,149.04,149.01,10.04322959]
[1749234523677,6.74706102,149.04,149.01,16.74902959]
[1749234524483,0.04216102,149.04,149.01,10.04322959]
[1749234524781,0.04216102,149.04,149.02,6.7052]
[1749234525982,0.04216102,149.04,149.03,6.705]
[1749234526281,0.04216102,149.04,149.01,10.04322959]
[1749234526483,0.04216102,149.04,149.02,6.7052]
[1749234527379,0.04216102,149.04,149.01,10.04322959]
[1749234527573,7.32020044,149.03,149.01,10.04322959]
[1749234527776,14.02560044,149.03,149.01,10.04322959]
[1749234528081,7.32020044,149.03,149.01,10.04322959]
[1749234528580,6.7055,149.02,149.01,10.04322959]
[1749234529885,14.02550044,149.03,149.01,10.04322959]
[1749234530086,7.32020044,149.03,149.01,10.04322959]
[1749234531588,6.7055,149.02,149.01,10.04322959]
[1749234535494,0.04216102,149.04,149.01,10.04322959]
[1749234535689,41.18020044,149.09,149.02,7.32020044]
[1749234535888,7.32020044,149.07,149.01,10.0]
[1749234536085,7.32020044,149.07,149.01,17.32020044]
[1749234536289,6.7038,149.06,149.02,6.7053]
[1749234536490,7.32020044,149.07,149.01,10.0]
[1749234536786,0.04525111,149.05,149.03,0.04957506]
[1749234536991,41.22545155,149.05,149.03,0.04957506]
[1749234537583,41.22545155,149.05,149.01,10.0]
[1749234537790,7.32020044,149.02,149.01,10.0]
[1749234538387,6.7055,149.02,149.01,10.0]
[1749234538593,7.32020044,149.02,149.01,10.0]
[1749234539393,14.02570044,149.02,149.01,10.0]
[1749234540489,7.32020044,149.02,149.01,10.0]
[1749234541798,33.90525111,149.05,149.01,10.0]
[1749234541997,7.32020044,149.04,149.01,10.0]
[1749234542195,33.90525111,149.05,149.02,6.7051]
[1749234542791,33.90525111,149.05,149.03,6.705]
[1749234542994,33.90525111,149.05,149.01,10.0]
[1749234543298,40.60965111,149.05,149.01,16.7057]
[1749234544796,33.90525111,149.05,149.01,17.32020044]
[1749234545703,0.04525111,149.05,149.03,7.32020044]
[1749234545904,0.04525111,149.05,149.04,6.7046]
[1749234546796,0.04525111,149.05,149.03,14.06892586]
[1749234546993,0.04525111,149.05,149.03,0.04392542]
[1749234547602,6.74965111,149.05,149.03,0.04392542]
[1749234548100,0.04525111,149.05,149.03,0.04392542]
[1749234548307,6.7046,149.04,149.03,0.04392542]
[1749234551703,6.74935111,149.05,149.03,0.04392542]
[1749234552201,0.04525111,149.05,149.03,0.04392542]
[1749234552604,0.04525111,149.05,149.03,6.74892542]
[1749234553603,6.74945111,149.05,149.03,0.04392542]
[1749234554206,6.7046,149.04,149.03,0.04392542]
[1749234555207,40.5646,149.04,149.03,0.04392542]
[1749234556404,14.02570044,149.02,149.01,10.0]
[1749234557407,6.7059,149.01,149.0,0.0281912]
[1749234559208,6.72,149.01,148.93,6.23494987]
[1749234559407,7.32020044,148.95,148.88,15.78085031]
[1749234559610,41.40020044,148.95,148.89,4.4838]
[1749234560312,0.04272437,148.93,148.9,6.7108]
[1749234560505,0.04272437,148.93,148.89,4.4838]
[1749234560899,0.04272437,148.93,148.91,6.7103]
[1749234561309,34.08,148.95,148.91,7.32020044]
[1749234562313,34.08,148.95,148.94,6.7091]
[1749234563307,0.0513399,148.96,148.95,6.7086]
[1749234563909,6.7596399,148.96,148.93,6.7092]
[1749234564214,6.7596399,148.96,148.92,0.04388131]
[1749234564215,7.32020044,148.95,148.92,0.04388131]
[1749234564601,7.32020044,148.93,148.92,0.04388131]
[1749234565312,0.0513399,148.96,148.92,0.04388131]
[1749234565507,0.0513399,148.96,148.94,6.7091]
[1749234566614,0.0513399,148.96,148.92,7.36408175]
[1749234566814,0.0513399,148.96,148.93,4.4579]
[1749234567216,0.0513399,148.96,148.95,6.7086]
[1749234567517,0.0513399,148.96,148.93,4.4579]
[1749234567817,6.7598399,148.96,148.93,11.1672]
[1749234568116,0.0513399,148.96,148.93,14.4579]
[1749234569018,7.37154034,148.96,148.93,10.0]
[1749234569205,6.7091,148.94,148.93,10.0]
[1749234569910,6.7088,148.95,148.93,10.0]
[1749234570219,6.7091,148.94,148.93,10.0]
[1749234570516,0.0513399,148.96,148.93,10.0]
[1749234570816,6.7089,148.95,148.93,10.0]
[1749234571012,7.37154034,148.96,148.93,10.0]
[1749234571515,6.7086,148.95,148.93,10.0]
[1749234572114,6.7091,148.94,148.93,10.0]
[1749234577323,7.32020044,148.95,148.93,10.0]
[1749234577520,0.0513399,148.96,148.93,10.0]
[1749234577817,0.0513399,148.96,148.95,6.7086]
[1749234583223,40.8064,149.0,148.97,6.7073]
[1749234583421,34.1,149.0,148.94,9.42670044]
[1749234584222,0.04837898,148.98,148.96,0.04580457]
[1749234584622,0.04837898,148.98,148.97,6.7074]
[1749234585325,0.04837898,148.98,148.96,0.04580457]
[1749234585326,14.02580044,149.02,148.96,7.36600501]
[1749234585922,14.02580044,149.02,148.99,6.7064]
[1749234586120,34.65909,149.03,148.96,7.32020044]
[1749234586323,34.65909,149.03,148.98,7.36436088]
[1749234586324,0.04482083,149.01,148.98,7.36436088]
[1749234586525,0.04482083,149.01,149.0,6.7064]
[1749234587335,0.04482083,149.01,149.0,16.7064]
[1749234588823,0.04482083,149.01,149.0,10.0]
[1749234589932,0.04482083,149.01,149.0,16.7064]
[1749234593840,34.65909,149.03,149.02,6.7055]
[1749234594042,0.55909,149.03,149.02,6.7055]
[1749234596733,0.55909,149.03,149.01,6.7528128]
[1749234596933,0.55909,149.03,149.01,0.0471128]
[1749234598234,0.55909,149.03,149.02,6.7055]
[1749234599046,7.26419,149.03,149.01,0.0471128]
[1749234599935,0.55909,149.03,149.01,6.7528128]
[1749234600338,0.55909,149.03,149.02,6.7055]
[1749234600738,0.55909,149.03,149.01,0.0471128]
[1749234600943,6.74860034,149.04,149.01,0.0471128]
[1749234601342,6.74860034,149.04,149.01,6.7528128]
[1749234601838,6.18906544,149.17,149.03,14.64040088]
[1749234602043,8.20855862,149.19,149.02,40.43494987]
[1749234602044,2.68446544,149.19,149.15,7.32020044]
[1749234602247,16.41711725,149.32,149.16,6.23494987]
[1749234602248,7.32020044,149.25,149.16,6.23494987]
[1749234602443,7.31152775,149.2,149.12,7.31152775]
[1749234602737,34.2,149.22,149.16,7.31152775]
[1749234602940,34.2,149.22,149.18,0.04231843]
[1749234603146,0.04566906,149.2,149.18,0.04231843]
[1749234603336,6.74306906,149.2,149.18,0.04231843]
[1749234603538,0.04566906,149.2,149.18,0.04231843]
[1749234603942,14.04997807,149.2,149.14,6.21663843]
[1749234604241,7.35247807,149.2,149.13,7.30680901]
[1749234604440,6.74336906,149.2,149.14,14.00660901]
[1749234604643,6.74336906,149.2,149.14,7.30680901]
[1749234604848,0.04566906,149.2,149.11,34.2]
[1749234605044,0.04919182,149.17,149.14,6.74567152]
[1749234605340,0.04919182,149.17,149.15,7.30680901]
[1749234605541,34.2,149.22,149.2,6.6972]
[1749234605747,34.2,149.22,149.19,7.30680901]
[1749234606349,34.2,149.22,149.13,6.21442322]
[1749234606350,7.30680901,149.21,149.13,7.30680901]
[1749234606544,0.05097966,149.18,149.16,0.04607071]
[1749234607039,0.05097966,149.18,149.16,6.74487071]
[1749234607234,0.05097966,149.18,149.17,7.30680901]
[1749234608938,0.05097966,149.18,149.16,0.04607071]
[1749234609546,0.05097966,149.18,149.16,6.74507071]
[1749234609851,0.05097966,149.18,149.16,0.04607071]
[1749234610050,6.6987,149.17,149.16,0.04607071]
[1749234610445,6.7023,149.1,149.06,6.7032]
[1749234610644,34.16,149.1,149.0,4.3871]
[1749234610845,34.16,149.1,149.06,12.52836237]
[1749234611046,34.16,149.1,149.07,6.7031]
[1749234611246,34.16,149.1,149.06,12.52836237]
[1749234611447,0.04526853,149.09,149.07,0.04980081]
[1749234613149,0.04526853,149.09,149.08,6.7028]
[1749234614143,6.853e-05,149.09,149.08,29.23116237]
[1749234614849,34.16,149.13,149.12,6.701]
[1749234615155,34.16,149.16,149.1,12.52836237]
[1749234615546,34.16,149.16,149.12,12.52836237]
[1749234615747,0.04295662,149.15,149.14,6.7001]
[1749234615942,0.04295662,149.15,149.14,19.22846237]
[1749234616448,0.04295662,149.15,149.13,0.0442683]
[1749234616849,6.7001,149.14,149.13,0.0442683]
[1749234617654,6.74275662,149.15,149.13,0.0442683]
[1749234617845,12.57131899,149.15,149.13,0.0442683]
[1749234618147,0.04295662,149.15,149.13,0.0442683]
[1749234618348,0.04295662,149.15,149.13,6.7444683]
[1749234618547,0.04295662,149.15,149.13,0.0442683]
[1749234619359,0.04295662,149.15,149.13,6.7443683]
[1749234619653,0.04295662,149.15,149.13,0.0442683]
[1749234620354,6.74255662,149.15,149.13,0.0442683]
[1749234620855,0.04295662,149.15,149.13,6.7446683]
[1749234621251,0.04295662,149.15,149.13,0.0442683]
[1749234623456,6.74265662,149.15,149.13,0.0442683]
[1749234623860,0.04295662,149.15,149.13,0.0442683]
[1749234624155,12.57131899,149.15,149.13,0.0442683]
[1749234624748,6.7001,149.14,149.13,0.0442683]
[1749234625155,14.76061899,149.15,149.08,10.0]
[1749234625352,19.22996237,149.11,149.08,10.0]
[1749234625553,35.46,149.11,149.09,6.7023]
[1749234625753,35.46,149.11,149.08,10.0]
[1749234626248,35.50579654,149.11,149.08,10.04995832]
[1749234626455,0.04579654,149.11,149.08,22.57832069]
[1749234626656,12.52836237,149.19,149.1,12.52836237]
[1749234626962,35.46,149.18,149.13,12.52836237]
[1749234627158,35.46,149.18,149.16,6.6989]
[1749234627455,35.46,149.18,149.13,12.52836237]
[1749234627648,0.04943317,149.17,149.14,0.04947114]
[1749234628556,0.04943317,149.17,149.15,6.6993]
[1749234628851,0.04943317,149.17,149.14,0.04947114]
[1749234629052,0.04943317,149.17,149.16,6.6992]
[1749234631065,0.04943317,149.17,149.15,6.6995]
[1749234631259,0.04943317,149.17,149.14,0.04947114]
[1749234631662,0.04943317,149.17,149.16,6.6992]
[1749234631858,0.04943317,149.17,149.14,0.04947114]
[1749234632166,6.74813317,149.17,149.16,10.0]
[1749234632356,42.20813317,149.17,149.16,10.0]
[1749234633563,35.50943317,149.17,149.16,10.0]
[1749234634452,0.04943317,149.17,149.16,10.0]
[1749234634658,0.04943317,149.17,149.16,16.6992]
[1749234634659,3.317e-05,149.17,149.16,16.6992]
[1749234635760,3.317e-05,149.17,149.16,23.4889]
[1749234636968,2.1195,149.26,149.16,29.68394912]
[1749234636969,37.5795,149.26,149.16,29.68394912]
[1749234637268,37.5795,149.26,149.19,12.52836237]
[1749234637462,37.5795,149.26,149.22,6.6965]
[1749234637663,6.6954,149.25,149.22,6.6965]
[1749234637854,12.57315917,149.25,149.22,0.0505799]
[1749234638054,12.52836237,149.23,149.16,12.3167]
[1749234638261,6.6976,149.2,149.16,10.0]
[1749234638663,35.46,149.22,149.16,10.0]
[1749234639165,0.04323265,149.2,149.18,0.04997035]
[1749234640669,0.04323265,149.2,149.19,6.6976]
[1749234646977,0.04323265,149.2,149.18,6.74817035]
[1749234647172,0.04323265,149.2,149.19,10.0]
[1749234650074,6.74063265,149.2,149.19,10.0]
[1749234650378,0.04323265,149.2,149.19,10.0]
[1749234652680,6.74063265,149.2,149.19,10.0]
[1749234653079,6.74063265,149.2,149.19,9.95420346]
[1749234653385,6.74063265,149.2,149.05,414.9879973]
[1749234653386,6.6997,149.15,149.11,6.19424912]
[1749234653581,6.6997,149.15,149.08,41.49424912]
[1749234653782,6.6997,149.15,149.12,6.7008]
[1749234653985,19.22766237,149.16,149.08,41.49424912]
[1749234654280,12.52836237,149.16,149.12,6.7006]
[1749234654480,0.04230618,149.13,149.12,6.7006]
[1749234654780,0.04230618,149.13,149.11,0.0428362]
[1749234655378,0.04230618,149.13,149.12,6.701]
[1749234656081,0.04230618,149.13,149.12,16.701]
[1749234657485,0.04230618,149.13,149.12,10.0]
[1749234658073,0.04230618,149.13,149.12,16.701]
[1749234658679,35.3,149.17,149.16,6.6992]
[1749234658879,4.2722,149.2,149.14,12.52836237]
[1749234658880,35.3,149.2,149.14,12.52836237]
[1749234659279,35.3,149.2,149.19,6.6978]
[1749234660283,35.3,149.2,149.18,6.74407082]
[1749234660478,35.3,149.2,149.18,0.04597082]
[1749234660675,35.3,149.2,149.18,6.74407082]
[1749234661182,35.3,149.2,149.18,0.04597082]
[1749234661386,6.6978,149.19,149.18,0.04597082]
[1749234661878,6.6992,149.16,149.13,6.7003]
[1749234662274,35.3,149.16,149.12,10.0]
[1749234662781,6.7002,149.14,149.12,10.0]
[1749234662986,6.7002,149.14,149.13,0.05115496]
[1749234664288,12.57415306,149.15,149.12,10.0]
[1749234664289,6.7005,149.13,149.12,10.0]
[1749234664485,0.04579069,149.15,149.12,10.0]
[1749234665286,0.04579069,149.15,149.12,10.04899198]
[1749234665483,0.04579069,149.15,149.14,6.7001]
[1749234669080,0.04579069,149.15,149.14,19.22846237]
[1749234669883,0.04579069,149.15,149.14,6.7001]
[1749234670286,0.04579069,149.15,149.14,19.22846237]
[1749234670490,47.89415306,149.15,149.12,10.04899198]
[1749234670686,47.89415306,149.15,149.06,8.25899883]
[1749234670687,12.52836237,149.13,149.04,6.19424912]
[1749234670887,6.7026,149.09,149.03,6.19424912]
[1749234671082,35.32,149.09,149.05,6.7039]
[1749234671391,35.32,149.09,149.03,6.19424912]
[1749234671694,0.04765682,149.07,149.05,0.04899828]
[1749234671883,6.75115682,149.07,149.05,0.04899828]
[1749234672488,6.7037,149.06,149.05,0.04899828]
[1749234672686,19.23206237,149.06,149.05,0.04899828]
[1749234674687,0.04765682,149.07,149.05,10.04899828]
[1749234674898,35.32,149.06,149.05,10.04899828]
[1749234676185,0.04765682,149.07,149.06,6.7037]
[1749234678999,0.04765682,149.07,149.05,16.75299828]
[1749234679195,0.04765682,149.07,149.05,10.04899828]
[1749234680197,0.04765682,149.07,149.06,6.7037]
[1749234684098,0.04765682,149.07,149.05,10.04899828]
[1749234684506,6.7037,149.06,149.05,10.04899828]
[1749234686010,6.75105682,149.07,149.05,10.04899828]
[1749234686311,0.04765682,149.07,149.05,10.04899828]
[1749234686609,6.7037,149.06,149.05,10.04899828]
[1749234687005,19.23206237,149.06,149.05,10.04899828]
[1749234687799,6.7065,149.0,148.95,6.21631407]
[1749234688000,6.7065,149.0,148.95,2.1172]
[1749234688202,6.7065,149.0,148.97,6.7074]
[1749234688700,6.7069,148.99,148.96,6.7081]
[1749234688902,0.04629201,148.99,148.96,0.03599386]
[1749234689313,0.04629201,148.99,148.97,6.7075]
[1749234689706,0.04629201,148.99,148.97,16.7075]
[1749234690114,0.04629201,148.99,148.98,6.7073]
[1749234690317,35.4,149.02,148.97,10.0]
[1749234690716,6.7061,149.01,148.98,6.707]
[1749234691418,6.7514593,149.01,148.98,6.707]
[1749234691719,0.0453593,149.01,148.98,6.707]
[1749234692123,6.7515593,149.01,148.98,6.707]
[1749234692421,0.0453593,149.01,148.97,10.0]
[1749234692612,35.4,149.05,148.99,12.52836237]
[1749234693316,42.1044,149.05,149.03,6.705]
[1749234693714,42.14683181,149.05,149.03,0.04954389]
[1749234694217,35.44243181,149.05,149.03,0.04954389]
[1749234694817,42.14663181,149.05,149.03,0.04954389]
[1749234695815,6.7046,149.04,149.03,0.04954389]
[1749234701922,19.23296237,149.04,149.03,4.389e-05]
[1749234703224,6.7046,149.04,149.03,4.389e-05]
[1749234707125,6.7046,149.04,149.03,10.00004389]
[1749234708622,6.707,148.99,148.95,2.1172]
[1749234709131,6.707,148.99,148.96,6.7081]
[1749234709330,41.7265,149.0,148.95,2.1172]
[1749234709523,0.05147278,148.99,148.96,0.04314272]
[1749234709722,0.05147278,148.99,148.97,6.7075]
[1749234710724,6.75837278,148.99,148.97,16.7075]
[1749234711127,0.05147278,148.99,148.97,16.7075]
[1749234711327,0.05147278,148.99,148.97,10.0]
[1749234711830,0.05147278,148.99,148.97,16.7075]
[1749234712031,0.05147278,148.99,148.97,10.0]
[1749234712529,0.05147278,148.99,148.97,16.7075]
[1749234712925,399.4634,149.11,149.02,6.7051]
[1749234713126,12.52836237,149.08,149.0,12.52836237]
[1749234713323,12.52836237,149.08,149.01,2.23]
[1749234713630,12.52836237,149.08,149.03,6.705]
[1749234713928,6.704,149.06,149.04,0.04572505]
[1749234714128,35.02,149.06,149.04,0.04572505]
[1749234715122,6.7041,149.05,149.04,0.04572505]
[1749234715318,35.02,149.06,149.04,0.04572505]
[1749234716725,6.7041,149.05,149.04,0.04572505]
[1749234720933,6.7,149.05,148.97,10.0]
[1749234721129,12.52836237,149.01,148.97,16.7075]
[1749234721331,35.02,149.0,148.97,16.7075]
[1749234721534,35.02,149.0,148.97,10.0]
[1749234721836,35.06840406,149.0,148.97,10.04791066]
[1749234722037,6.7071,148.99,148.97,10.04791066]
[1749234722239,35.06840406,149.0,148.97,10.04791066]
[1749234722439,41.77510406,149.0,148.97,16.75561066]
[1749234722634,35.06840406,149.0,148.97,10.04791066]
[1749234723636,6.7073,148.98,148.97,10.04791066]
[1749234725239,35.06840406,149.0,148.97,10.04791066]
[1749234725637,35.06840406,149.0,148.98,12.52836237]
[1749234725840,35.06840406,149.0,148.99,6.7068]
[1749234726043,0.04840406,149.0,148.99,6.7068]
[1749234727130,35.02,149.03,148.98,16.96886237]
[1749234727131,35.02,149.03,149.0,6.7062]
[1749234727538,41.7254,149.03,149.0,6.7062]
[1749234728140,41.77018357,149.03,149.0,6.75667877]
[1749234728442,35.06478357,149.03,149.0,0.05047877]
[1749234728643,47.59314594,149.03,149.0,0.05047877]
[1749234728946,6.7059,149.01,149.0,0.05047877]
[1749234734548,6.7055,149.02,149.0,0.05047877]
[1749234734754,47.59314594,149.03,149.0,0.05047877]
[1749234735249,6.7059,149.01,149.0,0.05047877]
[1749234737042,19.23426237,149.01,149.0,0.05047877]
[1749234737241,19.23426237,149.01,149.0,10.05047877]
[1749234739248,6.7059,149.01,149.0,10.05047877]
[1749234745356,14.03319559,149.01,149.0,10.05047877]
[1749234748757,6.7059,149.01,149.0,10.05047877]
[1749234749858,14.03299559,149.02,149.0,10.05047877]
[1749234750160,0.04478357,149.03,149.0,10.05047877]
[1749234750554,34.76,149.04,149.01,2.3188]
[1749234750752,31.2529,149.04,149.01,2.3188]
[1749234750958,31.2529,149.04,149.02,6.7052]
[1749234751656,31.29980578,149.04,149.02,6.7052]
[1749234752360,31.29980578,149.04,149.02,16.7052]
[1749234752557,0.04690578,149.04,149.03,6.705]
[1749234753061,34.76,149.07,149.04,6.7043]
[1749234753261,31.2527,149.07,149.04,7.32729559]
[1749234753464,31.2527,149.07,149.05,2.1897]
[1749234753664,31.2527,149.07,149.05,8.8936]
[1749234754052,31.29551414,149.07,149.05,8.94110408]
[1749234754261,31.29551414,149.07,149.06,6.7037]
[1749234754464,31.29551414,149.07,149.05,2.23720408]
[1749234755164,31.29551414,149.07,149.06,6.7037]
[1749234755765,31.29551414,149.07,149.05,8.94120408]
[1749234756065,31.29551414,149.07,149.05,2.23720408]
[1749234756568,0.04281414,149.07,149.06,6.7037]
[1749234757060,0.04281414,149.07,149.06,14.03099559]
[1749234757267,34.76,149.1,149.09,6.7023]
[1749234758059,34.76,149.1,149.08,6.7026]
[1749234758264,42.13331014,149.1,149.08,0.04434586]
[1749234758467,49.46060573,149.1,149.02,10.0]
[1749234758671,6.705,149.03,149.02,10.0]
[1749234758869,41.465,149.03,149.02,10.0]
[1749234759556,34.76,149.03,149.02,10.0]
[1749234759866,0.04334493,149.04,149.02,10.0]
[1749234760463,0.04334493,149.04,149.03,6.705]
[1749234761360,0.04334493,149.04,149.02,10.0]